Cogmind - Beta 17 @@@ ROGUE MODE // 2026.07.25 @ 02:36:57 Player: kite Result: Self-destructed Performance ------------- Evolutions (2) 1000 Regions Visited (7) 1400 Robots Destroyed (68) 340 Value Destroyed (1704) 1704 Prototype IDs (2) 40 Alien Tech Used (0) 0 Bonus (49) 49 TOTAL SCORE: 4533 Bonus ------- Follower Combat Kills 49 Cogmind --------- Core Integrity 489/550 Matter 260/300 Energy 280/280 System Corruption 0% Temperature Cool (0) Movement Walking (330) Ox3 Location -8/Materials Parts ------- > --- POWER (1) -------- Cooled Ion Engine > --- PROPULSION (6) --- Aluminum Leg > --- UTILITY (2) ------ Improved Heat Sink Large Storage Unit > --- WEAPON (2) ------- Beam Rifle Beam Rifle > --- INVENTORY (15) --- Cooled Ion Engine Light Deuterium Engine Medium Storage Unit Huge Storage Unit Huge Storage Unit Improved Sensor Array Advanced Targeting Computer Beam Rifle Improved Light Cannon Improved Light Cannon Assault Cannon Grenade Launcher Rocket Launcher Plasma Cutter Peak State ------------ > --- POWER ------------ Cooled Ion Engine > --- PROPULSION ------- Light Treads Light Treads Aluminum Leg Aluminum Leg Aluminum Leg Aluminum Leg > --- UTILITY ---------- Improved Heat Sink Large Storage Unit > --- WEAPON ----------- Beam Rifle Assault Cannon > --- INVENTORY -------- Cooled Ion Engine Light Deuterium Engine Medium Storage Unit Huge Storage Unit Huge Storage Unit Improved Sensor Array Weapon Shielding Beam Rifle Beam Rifle Beam Rifle Grenade Launcher Rocket Launcher Plasma Cutter [Rating: 20] Favorites ----------- Power Cooled Ion Engine Engine Cooled Ion Engine Propulsion Aluminum Leg Treads Light Treads Leg Aluminum Leg Utility Large Storage Unit Device Heat Sink Storage Large Storage Unit Protection Weapon Shielding Weapon Beam Rifle Energy Gun Beam Rifle Ballistic Gun Heavy Assault Rifle Ballistic Cannon Assault Cannon Launcher Grenade Launcher Build | -11 -10 -10 -9 -9 -9 -8 -8 ------- Run | Yrd Mat Min Mat Min Exi Min Mat Slots Evolved 4 | . . . 2 . . . 2 Power . | . . . . . . . . Propulsion 4 | . . . 2 . . . 2 Utility . | . . . . . . . . Weapon . | . . . . . . . . Parts Attached 43 | 7 4 . 22 4 . 2 4 Power 5 | 1 . . 4 . . . . Engine 5 | 1 . . 4 . . . . Core . | . . . . . . . . Reactor . | . . . . . . . . Propulsion 16 | 2 1 . 8 3 . 2 . Treads 7 | 2 1 . 4 . . . . Leg 9 | . . . 4 3 . 2 . Wheel . | . . . . . . . . Hover . | . . . . . . . . Flight . | . . . . . . . . Utility 6 | 1 3 . 1 1 . . . Device 2 | . . . 1 1 . . . Storage 3 | 1 2 . . . . . . Processor . | . . . . . . . . Hackware . | . . . . . . . . Protection 1 | . 1 . . . . . . Artifact . | . . . . . . . . Weapon 16 | 3 . . 9 . . . 4 Energy Gun 11 | 3 . . 6 . . . 2 Energy Cannon . | . . . . . . . . Ballistic Gun 1 | . . . 1 . . . . Ballistic Cannon 2 | . . . . . . . 2 Launcher 2 | . . . 2 . . . . Special Weapon . | . . . . . . . . Impact Weapon . | . . . . . . . . Slashing Weapon . | . . . . . . . . Piercing Weapon . | . . . . . . . . Special Melee Weapon . | . . . . . . . . Unidentified Prototypes 2 | . . . 2 . . . . Parts Lost 15 | . . . 8 . . 1 6 Power 1 | . . . 1 . . . . Propulsion 11 | . . . 5 . . 1 5 Utility . | . . . . . . . . Weapon 3 | . . . 2 . . . 1 Highest Loss Streak 6 | . . . 4 . . 1 6 To Critical Strikes 1 | . . . . . . 1 . Average Backups 11 | 1 5 10 12 15 15 14 14 Power 1 | . 1 1 1 2 2 2 2 Propulsion 2 | . 3 5 3 3 3 2 . Utility 3 | . . 3 4 5 5 5 5 Weapon 3 | . . 1 3 5 5 5 6 Tool/Special . | . . . . . . . . Unused Backups 11 | . . . 2 . . . 9 Power 2 | . . . . . . . 2 Propulsion . | . . . . . . . . Utility 4 | . . . . . . . 4 Weapon 4 | . . . 2 . . . 2 Tool/Special 1 | . . . . . . . 1 Average Slot Usage (%) 97 | . 94 100 97 99 100 99 88 Engine 11 | . 14 14 10 11 11 11 9 Treads 19 | . 28 28 39 . . . 16 Leg 20 | . . . 3 44 44 43 28 Device 7 | . . . 9 11 11 11 9 Storage 11 | . 14 14 11 11 11 11 9 Protection 2 | . 8 14 2 . . . . Energy Gun 20 | . 28 28 14 21 22 22 14 Ballistic Gun 1 | . . . 5 . . . . Peak Build Rating 20 | 6 8 8 17 17 17 17 20 Average Rating 12 | 4 6 8 12 15 17 16 18 On Entrance 11 | . 6 8 8 15 17 17 17 Avg Prop Armor Cover (%) 8 | . . . 5 . . . 13 Naked Turns . | . . . . . . . . Heaviest Build 38 | 11 26 26 35 35 35 35 38 Greatest Support 80 | 40 40 40 80 40 40 40 40 Greatest Overweight (x) 1 | . . . 1 . . . 1 Average Overweight (x) . | . . . . . . . . Largest Inventory Capacity 15 | 8 15 15 15 15 15 15 15 Average Capacity 13 | 7 9 15 15 15 15 15 15 Most Carried 15 | 3 10 11 15 15 15 15 15 Average Carried 11 | 1 6 10 12 15 15 14 14 Final Capacity 15 | 8 15 15 15 15 15 15 15 Final Carried 15 | 3 10 11 15 15 15 14 14 Class Distribution -------------------- 59% | Scavenger-Mutant 40% | Mutant Dominant Class ---------------- Mutant | -10/Materials Mutant | -10/Mines Scavenger-Mutant | -9/Materials Scavenger-Mutant | -9/Mines Scavenger-Mutant | -9/Exiles Scavenger-Mutant | -8/Mines Scavenger-Mutant | -8/Materials Resources | -11 -10 -10 -9 -9 -9 -8 -8 ----------- Run | Yrd Mat Min Mat Min Exi Min Mat Matter Collected 813 | 148 138 . 290 207 . 30 . Remotely . | . . . . . . . . Salvage Created 2306 | . 612 . 1030 221 . 278 165 Parts 124 | . 32 . 61 21 . 8 2 Haulers Intercepted 3 | . 2 . 1 . . . . Recyclers Shooed 5 | . 2 . 2 . . 1 . Parts Field Recycled . | . . . . . . . . Retrieved Matter . | . . . . . . . . Parts Self-Destructed . | . . . . . . . . Prevented . | . . . . . . . . Parts Restored . | . . . . . . . . Kills | -11 -10 -10 -9 -9 -9 -8 -8 ------- Run | Yrd Mat Min Mat Min Exi Min Mat Combat Hostiles Destroyed 51 | . 10 . 26 8 . 4 3 Melee 1 | . . . 1 . . . . Guns 38 | . 10 . 16 8 . 3 1 AOE 9 | . . . 9 . . . . Classes Destroyed 9 | . 6 . 2 . . 1 . Worker 6 | . 2 . . 2 . 2 . Tunneler 3 | . 1 . 1 . . 1 . Hauler 3 | . 2 . 1 . . . . Recycler 2 | . 1 . 1 . . . . Watcher 3 | . . . 3 . . . . Swarmer 15 | . 3 . 7 5 . . . Grunt 29 | . 7 . 15 3 . 2 2 Sentry 5 | . . . 4 . . . 1 Hunter 2 | . . . . . . 2 . Best Kill Streak 7 | . 6 . 7 4 . 2 3 Combat Bots Only 7 | . 4 . 7 4 . 2 3 Max Kills in Single Turn 3 | . 1 . 3 1 . 1 1 Gunslinging . | . . . . . . . . Exploded 3 | . . . 3 . . . . Melee 1 | . . . 1 . . . . Uniques/NPCs Destroyed . | . . . . . . . . Combat | -11 -10 -10 -9 -9 -9 -8 -8 -------- Run | Yrd Mat Min Mat Min Exi Min Mat Hostile Shots Fired 292 | . 46 . 141 30 . 45 30 Missed 81 | . 15 . 34 7 . 18 7 Hits 211 | . 31 . 107 23 . 27 23 Projectile 211 | . 31 . 107 23 . 27 23 Critical Strikes 2 | . . . . . . 2 . Damage Taken 2691 | . 398 . 1367 216 . 365 345 Core 429 | . 109 . 193 38 . 28 61 Absorbed by Shields . | . . . . . . . . Redirected to Shielding 49 | . 27 . 22 . . . . Core Remaining (%) 63 | 100 . 56 . . . 35 . Volleys Fired 181 | . 38 . 81 20 . 30 12 Largest 2 | . 2 . 2 2 . 2 2 Hottest 112 | . 80 . 112 112 . 112 112 Shots Fired 345 | . 76 . 151 37 . 60 21 Gun 339 | . 76 . 145 37 . 60 21 Cannon . | . . . . . . . . Launcher 6 | . . . 6 . . . . Special . | . . . . . . . . Kinetic 41 | . . . 41 . . . . Thermal 286 | . 76 . 92 37 . 60 21 Explosive 6 | . . . 6 . . . . Electromagnetic 12 | . . . 12 . . . . Robot Hit Streak 17 | . 15 . 12 8 . 8 17 Robot Miss Streak 11 | . 2 . 11 3 . 3 1 Penetration Max . | . . . . . . . . Secondary Targets 4 | . 2 . 1 . . 1 . Max Gunslinging Chain 1 | . 1 . 1 . . 1 . Shots Hit Robots 233 | . 58 . 94 22 . 40 19 Core Hits 110 | . 30 . 48 12 . 16 4 Critical Kills . | . . . . . . . . Critical Parts Destroyed . | . . . . . . . . Critical Strikes 10 | . . . 1 3 . 1 5 Burn 10 | . . . 1 3 . 1 5 Melee Attacks . | . . . . . . . . Impact . | . . . . . . . . Slashing . | . . . . . . . . Piercing . | . . . . . . . . Sneak Attacks . | . . . . . . . . Combat Hostiles . | . . . . . . . . Follow-up Attacks . | . . . . . . . . Damage Inflicted 3840 | . 671 . 1935 336 . 623 275 Guns 3235 | . 663 . 1338 336 . 623 275 Cannons . | . . . . . . . . Explosions 586 | . . . 586 . . . . Melee . | . . . . . . . . Ramming 19 | . 8 . 11 . . . . Kinetic 403 | . . . 403 . . . . Thermal 2668 | . 663 . 771 336 . 623 275 Explosive 586 | . . . 586 . . . . Electromagnetic 164 | . . . 164 . . . . Impact . | . . . . . . . . Slashing . | . . . . . . . . Piercing . | . . . . . . . . Highest Corruption 5 | . . . 5 5 5 5 . Average Corruption 4 | . . . 4 5 5 5 . Corruption Purged . | . . . . . . . . Corruption Blocked . | . . . . . . . . Effects 37 | . . . 10 14 5 8 . Message Errors 9 | . . . 2 3 2 2 . Matter Fused 3 | . . . 2 1 . . . Heat Flow Errors 4 | . . . 1 1 1 1 . Energy Discharges 6 | . . . 1 2 . 3 . Parts Rejected 1 | . . . . 1 . . . Parts Fused 1 | . . . . 1 . . . Data Loss (minor) 8 | . . . 2 2 2 2 . Misfires 2 | . . . 1 1 . . . Weapon Failures 3 | . . . 1 2 . . . Overload Shots . | . . . . . . . . Overflow Damage 18 | . . . 18 . . . . Projectiles . | . . . . . . . . Explosions 18 | . . . 18 . . . . Melee . | . . . . . . . . Knockbacks . | . . . . . . . . Impact . | . . . . . . . . Kinetic . | . . . . . . . . Secondary . | . . . . . . . . Self-Inflicted Damage 140 | . . . 140 . . . . Shots 4 | . . . 4 . . . . Rammed 10 | . 7 . 3 . . . . Targets Rammed 11 | . 7 . 4 . . . . Kicked . | . . . . . . . . Crushed 1 | . . . 1 . . . . Highest Temperature 318 | . 206 . 261 318 63 244 19 Average Temperature 86 | . 84 . 106 87 45 52 7 Received Heat Transfer 1050 | . 183 . 564 45 . 87 171 Effects 1 | . . . 1 . . . . Energy Bleed 1 | . . . 1 . . . . Siege Activations . | . . . . . . . . Martial Activations . | . . . . . . . . Shielding Activations . | . . . . . . . . Robots Disrupted . | . . . . . . . . Combat Hostiles . | . . . . . . . . Robots Corrupted . | . . . . . . . . Combat Hostiles . | . . . . . . . . Parts Fried 1 | . . . 1 . . . . Impact Corruptions . | . . . . . . . . Robots Melted 3 | . . . . . . 1 2 Combat Hostiles 3 | . . . . . . 1 2 Parts Melted 24 | . 3 . 4 3 . 8 6 Heat Transferred 7174 | . 1500 . 1863 1073 . 1665 1073 Parts Sabotaged . | . . . . . . . . Parts Stolen . | . . . . . . . . Parts Stripped . | . . . . . . . . Power Chain Reactions . | . . . . . . . . Alert | -11 -10 -10 -9 -9 -9 -8 -8 ------- Run | Yrd Mat Min Mat Min Exi Min Mat Maximum Alert Level 1 | . . . 1 1 . . . Low Security (%) 78 | 100 100 100 39 90 . 100 100 Level 1 21 | . . . 60 9 . . . Level 2 . | . . . . . . . . Level 3 . | . . . . . . . . Level 4 . | . . . . . . . . Level 5 . | . . . . . . . . High Security . | . . . . . . . . Max Security . | . . . . . . . . Peak Influence 344 | . 117 35 344 222 . 53 31 Initial 127 | . . 35 1 127 . . . Average 112 | . 45 22 217 144 . 15 4 Influence Increases 1511 | . 289 . 748 245 . 148 81 Destroy 0b10 Robot/C 1080 | . 200 . 520 200 . 100 60 Destroy 0b10 Robot/NC 85 | . 30 . 30 10 . 15 . Destroy Leader 232 | . 44 . 108 30 . 30 20 Allied During Kill 8 | . . . . 5 . 3 . Successful Hack 6 | . . . 6 . . . . Disable Machine 30 | . . . 30 . . . . Destroy Structure 25 | . . . 24 . . . 1 Lose Combat Pursuer 45 | . 15 . 30 . . . . Influence Decreases 1481 | . 197 87 425 487 86 148 51 Entered New Map 348 | . . 57 4 201 86 . . Time Decay 959 | . 197 30 341 246 . 125 20 Lost Part 114 | . . . 80 . . 3 31 Lost Ally 60 | . . . . 40 . 20 . Squads Dispatched 5 | . 2 . 2 . . . 1 Investigation 2 | . 1 . 1 . . . . Extermination . | . . . . . . . . Reinforcement 3 | . 1 . 1 . . . 1 Assault . | . . . . . . . . Garrison . | . . . . . . . . Intercept . | . . . . . . . . Searches Triggered . | . . . . . . . . Construction Impeded . | . . . . . . . . Haulers Reinforced . | . . . . . . . . Active Scanning Responses . | . . . . . . . . Cargo Convoy Interrupts . | . . . . . . . . Stealth | -11 -10 -10 -9 -9 -9 -8 -8 --------- Run | Yrd Mat Min Mat Min Exi Min Mat Distress Signals 2 | . . . 2 . . . . Communications Jammed . | . . . . . . . . Distress Signals . | . . . . . . . . Times Spotted 70 | . 16 . 35 10 . 5 4 Peak Tracking Total 5 | . 4 . 5 3 . 3 4 Tactical Retreats 3 | . 1 . 2 . . . . Traps | -11 -10 -10 -9 -9 -9 -8 -8 ------- Run | Yrd Mat Min Mat Min Exi Min Mat Traps Triggered 4 | . 1 . 3 . . . . Indirectly . | . . . . . . . . Trap Hack Attempts . | . . . . . . . . Triggered . | . . . . . . . . Disarmed . | . . . . . . . . Reprogrammed . | . . . . . . . . Reused . | . . . . . . . . Traps Extracted . | . . . . . . . . Installed . | . . . . . . . . Triggered . | . . . . . . . . Machines | -11 -10 -10 -9 -9 -9 -8 -8 ---------- Run | Yrd Mat Min Mat Min Exi Min Mat Machines Disabled 2 | . . . 2 . . . . Max in Single Turn 2 | . . . 2 . . . . Machines Repaired . | . . . . . . . . Machines Dismantled . | . . . . . . . . Machines Sabotaged . | . . . . . . . . Overloaded Fab Kills . | . . . . . . . . Hacking | -11 -10 -10 -9 -9 -9 -8 -8 --------- Run | Yrd Mat Min Mat Min Exi Min Mat Machines Accessed 4 | . 1 . 2 . 1 . . Terminals 3 | . 1 . 2 . . . . Fabricators . | . . . . . . . . Repair Stations . | . . . . . . . . Recycling Units . | . . . . . . . . Scanalyzers . | . . . . . . . . Garrison Access . | . . . . . . . . Total Hacks 13 | . 3 . 6 . 4 . . Successful 6 | . 1 . 1 . 4 . . Failed 7 | . 2 . 5 . . . . Catastrophic 2 | . . . 2 . . . . Database Lockouts . | . . . . . . . . Manual 8 | . 2 . 6 . . . . Terminals 9 | . 3 . 6 . . . . Fabricators . | . . . . . . . . Repair Stations . | . . . . . . . . Recycling Units . | . . . . . . . . Scanalyzers . | . . . . . . . . Garrison Access . | . . . . . . . . Terminal Hacks 5 | . 1 . . . 4 . . Record 4 | . . . . . 4 . . Part Schematic 1 | . 1 . . . . . . Fabricator Hacks . | . . . . . . . . Repair Station Hacks . | . . . . . . . . Recycling Unit Hacks . | . . . . . . . . Scanalyzer . | . . . . . . . . Garrison Access Hacks . | . . . . . . . . Unauthorized Hacks 1 | . . . 1 . . . . Terminals 1 | . . . 1 . . . . Assimilate 1 | . . . 1 . . . . Fabricators . | . . . . . . . . Repair Stations . | . . . . . . . . Recycling Units . | . . . . . . . . Scanalyzers . | . . . . . . . . Garrison Access . | . . . . . . . . Data Cores Recovered . | . . . . . . . . Used . | . . . . . . . . Hacking Detections 3 | . 1 . 2 . . . . Full Trace Events 2 | . 1 . 1 . . . . Feedback Events . | . . . . . . . . Feedback Blocked . | . . . . . . . . Robot Schematics Acquired . | . . . . . . . . Robots Built . | . . . . . . . . Authchips . | . . . . . . . . Time . | . . . . . . . . Total Robot Build Rating . | . . . . . . . . Part Schematics Acquired 1 | . 1 . . . . . . Parts Built . | . . . . . . . . Authchips . | . . . . . . . . Time . | . . . . . . . . Total Part Build Rating . | . . . . . . . . Part Studies Acquired . | . . . . . . . . Parts Repaired . | . . . . . . . . Time . | . . . . . . . . Parts Recycled . | . . . . . . . . Recycled Matter . | . . . . . . . . Retrieved Matter . | . . . . . . . . Retrieved Components . | . . . . . . . . Parts Scanalyzed . | . . . . . . . . Part Schematics Acquired . | . . . . . . . . Parts Damaged . | . . . . . . . . Bothacking | -11 -10 -10 -9 -9 -9 -8 -8 ------------ Run | Yrd Mat Min Mat Min Exi Min Mat Used RIF Installer . | . . . . . . . . Robots Hacked . | . . . . . . . . Non-combat . | . . . . . . . . Combat . | . . . . . . . . Robot Hacks Applied . | . . . . . . . . Relay Couplers Released . | . . . . . . . . Fabnet Peak Effective % . | . . . . . . . . Robots Rewired . | . . . . . . . . Allies Hacked . | . . . . . . . . Hacks Repelled . | . . . . . . . . Allies | -11 -10 -10 -9 -9 -9 -8 -8 -------- Run | Yrd Mat Min Mat Min Exi Min Mat Total Allies 5 | . . . 1 4 . . . Largest Group 3 | . . . 1 3 2 2 . Highest-Rated Group 40 | . . . 10 40 39 39 . Highest-Rated Ally 31 | . . . 10 31 31 31 . Total Orders . | . . . . . . . . Ally Attacks 24 | . . . . 14 . 10 . Total Damage 157 | . . . . 80 . 77 . Kills 3 | . . . . 2 . 1 . Allies Corrupted . | . . . . . . . . Allies Melted . | . . . . . . . . Intel | -11 -10 -10 -9 -9 -9 -8 -8 ------- Run | Yrd Mat Min Mat Min Exi Min Mat Active Infowar (turns) . | . . . . . . . . Robot Analysis Total . | . . . . . . . . Derelict Logs Recovered 1 | . . . . 1 . . . Drone Launches . | . . . . . . . . Drone Recoveries . | . . . . . . . . Exploration | -11 -10 -10 -9 -9 -9 -8 -8 ------------- Run | Yrd Mat Min Mat Min Exi Min Mat Turns Passed 2873 | 88 592 67 862 528 206 385 145 Spaces Moved 1510 | 49 242 42 321 374 171 242 69 Core 3 | 3 . . . . . . . Treads 644 | 46 242 42 314 . . . . Legs 863 | . . . 7 374 171 242 69 Wheels . | . . . . . . . . Hover . | . . . . . . . . Flight . | . . . . . . . . Fastest Speed 50 | 50 160 160 120 120 120 120 120 Average Speed 137 | 153 160 160 159 120 120 120 123 Slowest Speed 190 | 160 160 160 190 120 120 120 190 Overloaded Moves . | . . . . . . . . Propulsion Burnouts . | . . . . . . . . Robots Hopped . | . . . . . . . . Potential Cave-ins . | . . . . . . . . Cave-ins Triggered . | . . . . . . . . Exploration Rate (%) 37 | 4 48 17 37 81 49 55 9 Regions Visited 7 Branch Regions 4 Pre-discovered Areas 1 | . . . . . 1 . . Known Exits Taken . | . . . . . . . . Unknown Exits Taken 7 | 1 1 1 1 1 1 1 . Scrap Searched 2 | . . . . 2 . . . Spaces Dug . | . . . . . . . . Terrain Destroyed 19 | . . . 19 . . . . Melee . | . . . . . . . . Projectile . | . . . . . . . . AOE 19 | . . . 19 . . . . Terrain Rammed . | . . . . . . . . Walls Destroyed . | . . . . . . . . Machines Disabled . | . . . . . . . . Actions | -11 -10 -10 -9 -9 -9 -8 -8 --------- Run | Yrd Mat Min Mat Min Exi Min Mat Total 1954 | 59 366 42 513 416 172 277 109 Wait 148 | . 70 . 51 14 2 1 10 Move 1503 | 48 241 41 320 373 170 241 69 Hop . | . . . . . . . . Pick Up 29 | 3 5 1 15 . . 1 4 Fast Attach 21 | 7 1 . 8 1 . . 4 Attach 14 | . . . 10 . . 1 3 Detach 2 | . . . . . . . 2 Swap 20 | . 3 . 12 4 . 1 . Drop 25 | 1 1 . 12 4 . 2 5 Fire 181 | . 38 . 81 20 . 30 12 Melee . | . . . . . . . . Ram . | . . . . . . . . Kick . | . . . . . . . . Crush 11 | . 7 . 4 . . . . Escape Stasis . | . . . . . . . . Rewire . | . . . . . . . . Trap . | . . . . . . . . Miscellaneous . | . . . . . . . . Route ------- -11/Scrapyard -10/Materials (discovered 2 exits: *Mat / [*Min]) -10/Mines -9/Materials (discovered 2 exits: [*Mat] / [*Min]) -9/Mines (discovered 4 exits: [*Mat x2] / *Exi / [*Zio]) -9/Exiles -8/Mines -8/Materials History --------- Turn | Location | Event 51 | -11/Scrapyard | Discovered new exit (range 16) 89 | -11/Scrapyard | Entered Materials 325 | -10/Materials | Build established: Mutant 445 | -10/Materials | Discovered new exit (range 7) 660 | -10/Materials | Discovered new exit (range 8) 681 | -10/Materials | Entered Mines 688 | -10/Mines | Received a Rocket Launcher from a helpful Derelict 740 | -10/Mines | Discovered new exit (range 6) 748 | -10/Mines | Entered Materials 748 | -9/Materials | Evolved 2 slots: Propulsion x2 1027 | -9/Materials | Destroyed 7 combat bots 1034 | -9/Materials | Lost 4 parts (1p1n2w) 1313 | -9/Materials | Discovered new exit (range 5) 1346 | -9/Materials | Build established: Scavenger-Mutant 1550 | -9/Materials | Discovered new exit (range 11) 1610 | -9/Materials | Entered Mines 1647 | -9/Mines | Core integrity fell below 50% 1769 | -9/Mines | A Derelict revealed a hidden shortcut to a safe place 1827 | -9/Mines | Discovered new exit (range 9) 1857 | -9/Mines | Learned Materials terminal intel 2038 | -9/Mines | Assisted by bots powering up and referring to "LRC-V3" 2076 | -9/Mines | Discovered new exit (range 11) 2097 | -9/Mines | Received a Mining Laser from a helpful Derelict 2122 | -9/Mines | Deemed a non-threat by the Exiles lab entrance 2123 | -9/Mines | Discovered new exit (range 5) 2138 | -9/Mines | Entered Exiles 2138 | -9/Exiles | Accompanied by 2 allies 2166 | -9/Exiles | Met 8R-AWN 2188 | -9/Exiles | Met EX-HEX 2234 | -9/Exiles | Met EX-DEC 2243 | -9/Exiles | Learned location of Zion (-7) 2276 | -9/Exiles | Discovered new exit (range 14) 2344 | -9/Exiles | Entered Mines 2344 | -8/Mines | Accompanied by 2 allies 2719 | -8/Mines | Discovered new exit (range 7) 2729 | -8/Mines | Entered Materials 2729 | -8/Materials | Evolved 2 slots: Propulsion x2 2730 | -8/Materials | Loaded intel: 12 terminal locations 2874 | -8/Materials | Self-destructed Last Messages --------------- 02852_ Y-45 Defender suffers critical hit (Burn). 02854_ Aluminum Leg destroyed. 02855_ Y-45 Defender suffers critical hit (Burn). 02856_ Lgt. Treads destroyed. 02857_ Y-45 Defender heat damages core (-5). 02857_ Beam Rifle destroyed. 02858_ Y-45 Defender suffers critical hit (Burn). 02860_ Y-45 Defender critical meltdown. 02860_ Imp. Ion Engine melted. 02860_ Lgt. Treads melted. 02868_ G-47 Trooper suffers critical hit (Burn). 02870_ G-47 Trooper overheating. 02871_ Lgt. Treads destroyed. 02872_ G-47 Trooper critical meltdown. 02872_ Particle Gun melted. 02872_ Lgt. Nuclear Core melted. 02872_ Aluminum Leg melted. Map ----- +----------------------------------------------------+ | ?????????????????????????????????????????????????? | | ?????????????????????????????????????????????????? | | ?????????????????????????????????????????????????? | | ?????????????????????????????????????????????????? | | ?????????????????????????????????????????????????? | | ?????????????????????????????????????????????????? | | ?????????????????????????????????????????????????? | | ?????????????????????????????????????????????????? | | ????????????############?????????????????????????? | | ????????????# # """ #?????????????????????????? | | ????????????# # """ #?????????????????????????? | | ????????????# # """ #?????????????????????????? | | ???????##+### + #?????????????????????????? | | # #?????????????????????????? | | # #?????????????????????????? | | ####+###?????????????????????????? | | ? ########### ## #?????????????????????????? | | ????????????# ## """ #?????????????????????????? | | ????????????# ## """ #?????????????????????????? | | ????????????# ## """ ########??????????????????? | | ????????????# ## #] = ] #??????????????????? | | ????????????# ## # #??????????????????? | | ????????????# ## # """ #??????????????????? | | ????????????# #####+## """ #??????????????????? | | ????????????# =+% """ #????????""T""?????? | | ????????????# # @% #????????"""""?????? | | ????????????# ###%####??????????????????? | | ??????????! # ! #??????????????????? | | ?????????? + #??????????????????? | | ????????????# #??????????????????? | | ????????????### [ #??????????????????? | | ??????????????# ][!#??????????????????? | | ??????????????# """ [[ ![!#??????????????????? | | ??????????????# "R [[! [ #??????????????????? | | ??????????? """ [!! #??????????????????? | | ??????????? #??????????????????? | | ?????????? #??????????????????? | | ????????? ###T#######" "####??????????????????? | | ??????????###??##??????#"T"#?????????????????????? | | ???????????????????????#"""#?????????????????????? | | ???????????????????????#####?????????????????????? | | ?????????????????????????????????????????????????? | | ?????????????????????????????????????????????????? | | ?????????????????????????????????????????????????? | | ?????????????????????????????????????????????????? | | ?????????????????????????????????????????????????? | | ?????????????????????????????????????????????????? | | ?????????????????????????????????????????????????? | | ?????????????????????????????????????????????????? | | ????????????????????????T????????????????????????? | +----------------------------------------------------+ Best States ------------- Heat Dissipation 45 Energy Generation 14 Energy Capacity 280 Matter Stores 300 Matter Capacity 300 Sight Range 16 Terrain Scan Density 10 Weapon Shielding 33 Evasion (%) 55 Recoil Reduction 4 Item Schematics ----------------- Cargo Storage Unit | -10/Materials | Hacked Robot Schematics ------------------ None Fabricated ------------ Nothing Repaired ---------- Nothing Studied --------- None Alien Tech Used ----------------- None Achievements -------------- None Challenges ------------ None Game ------ Seed StorageTeslaDerivative Manual? 0 Play Time 00:12:55 Cumulative 487.2 hours Start 2026.07.25 @ 02:23:26 End 2026.07.25 @ 02:36:57 Sessions 1 Manual Loads 0 Difficulty Rogue Special Mode None Game No. 438 Rogue 438 Adventurer 0 Explorer 0 Win Type - Total 13 Types 7/0/3/1/0/0/0/1/0/1 Lore% 63 Gallery% 70 Achievement% 66 Wizard Run 0 Options --------- Layout 1 ASCII 0 Keyboard 0 Movement Mouse Keybinds 0 Fullscreen 2 Font 24/Cog Map View 25x17 Zoom Use 40% Tactical HUD 1 Map Filters NONE Filters NONE Steam 1 RUN: 895aaea0-bf6d-4597-ae33-b4e338d20187